[Event "Turkish Super League 2019"]
[Site "Konya"]
[Date "2019.07.27"]
[Round "12"]
[White "Yilmaz, Mustafa"]
[Black "Selbes, Tarik"]
[Result "1/2-1/2"]
[ECO "E63"]
[WhiteElo "2618"]
[BlackElo "2342"]
[Annotator "ChessBase"]
[PlyCount "92"]
[EventDate "2019.07.17"]
[EventType "team-tourn"]
[EventCountry "TUR"]
[SourceTitle "playchess.com"]
[Source "ChessBase"]
[SourceQuality "1"]
[TimeControl "40/5400+30:1800+30"]

1. d4 Nf6 2. c4 g6 3. Nf3 Bg7 4. g3 O-O 5. Bg2 d6 6. O-O a6 7. Nc3 Nc6 8. b3 Rb8 9. d5 Na5 10. Bg5 b5 11. cxb5 axb5 12. b4 Nc4 13. Qb3 h6 14. Nd4 hxg5 15. Nc6 Qe8 16. Nxb8 Nd2 17. Qa3 Nxf1 18. Rxf1 Bb7 19. Nc6 e6 20. dxe6 Bxc6 21. e7 Qxe7 22. Bxc6 Ng4 23. e3 Ne5 24. Bxb5 Nf3+ 25. Kg2 Nd2 26. Bc6 Nxf1 27. Kxf1 f5 28. Nd5 Qe5 29. Qb3 Kh7 30. a4 Bh6 31. Qc3 Qe6 32. Nxc7 Qa2 33. Nd5 f4 34. exf4 gxf4 35. gxf4 Bxf4 36. Nf6+ {[%emt 1:44:30]} Rxf6 {[%emt 1:43:23]} 37. Qxf6 {[%emt 0:00:30]} Qc4+ {[%emt 0:00:30]} 38. Ke1 {[%emt 0:00:30]} Qxb4+ {[%emt 0:00:30]} 39. Ke2 {[%emt 0:00:30]} Qc4+ {[%emt 0:00:30]} 40. Kf3 {[%emt 0:00:30]} Qxc6+ {[%emt 0:00:30]} 41. Kxf4 {[%emt 0:30:30]} Qxa4+ {[%emt 0:30:30]} 42. Kg3 {[%emt 0:00:30]} Qd7 {[%emt 0:00:00]} 43. Qh4+ {[%emt 0:00:00]} Kg7 {[%emt 0:00:00]} 44. Qd4+ {[%emt 0:00:00]} Kh7 {[%emt 0:00:00]} 45. Qh4+ {[%emt 0:00:00]} Kg7 {[%emt 0:00:00]} 46. Qd4+ {[%emt 0:00:00]} Kh7 {[%emt 0:00:00]} 1/2-1/2

[Event "Turkish Super League 2019"]
[Site "Konya"]
[Date "2019.07.27"]
[Round "12"]
[White "Rakhmanov, Aleksandr"]
[Black "Can, Emre"]
[Result "1/2-1/2"]
[ECO "D78"]
[WhiteElo "2615"]
[BlackElo "2595"]
[Annotator "ChessBase"]
[PlyCount "128"]
[EventDate "2019.07.17"]
[EventType "team-tourn"]
[EventCountry "TUR"]
[SourceTitle "playchess.com"]
[Source "ChessBase"]
[SourceQuality "1"]
[TimeControl "40/5400+30:1800+30"]

1. Nf3 g6 2. g3 Bg7 3. d4 d5 4. Bg2 Nf6 5. c4 c6 6. Qa4 O-O 7. O-O dxc4 8. Qxc4 Bf5 9. Nc3 Nbd7 10. h3 a5 11. Qb3 Nb6 12. a4 Be6 13. Qc2 Nfd5 14. Nxd5 Qxd5 15. Bg5 Rfe8 16. Ra3 Qc4 17. Qxc4 Nxc4 18. Rb3 Nd6 19. Ra3 Ra6 20. b3 Rb6 21. Rb1 Bd5 22. Bf4 Bxf3 23. Bxf3 Bxd4 24. Bxd6 exd6 25. Ra2 Rb4 26. Rd2 d5 27. Rd3 f5 28. e3 Bb6 29. h4 Kf7 30. Kg2 Kf6 31. Rc1 Ke5 32. Rcd1 Kd6 33. Rc1 Ke5 34. Rcd1 Ke6 35. Rc1 Bd8 36. Rcd1 Bf6 37. Rh1 Ra8 38. Bd1 Kd6 39. Bc2 Re8 40. Rc1 {[%emt 1:12:00]} Rbe4 {[%emt 1:46:15]} 41. Bd1 {[%emt 0:33:30]} Bd8 {[%emt 0:12:15]} 42. Bf3 {[%emt 0:01:30]} R4e5 {[%emt 0:01:30]} 43. Rb1 {[%emt 0:04:30]} Kc7 {[%emt 0:03:20]} 44. Rh1 {[%emt 0:03:30]} R5e7 {[%emt 0:02:09]} 45. Rc3 {[%emt 0:00:30]} Kd6 {[%emt 0:00:13]} 46. Rd3 {[%emt 0:01:30]} Bb6 {[%emt 0:00:51]} 47. Rhd1 {[%emt 0:00:30]} Ke5 {[%emt 0:04:48]} 48. Rh1 {[%emt 0:01:30]} Rd8 {[%emt 0:00:11]} 49. Rhd1 {[%emt 0:01:30]} Red7 {[%emt 0:00:08]} 50. Rc1 {[%emt 0:00:30]} Rd6 {[%emt 0:01:23]} 51. Re1 {[%emt 0:00:00]} R8d7 {[%emt 0:00:00]} 52. Red1 {[%emt 0:01:00]} d4 {[%emt 0:00:52]} 53. exd4+ {[%emt 0:01:30]} Rxd4 {[%emt 0:00:07]} 54. Be2 {[%emt 0:03:30]} Rxd3 {[%emt 0:01:59]} 55. Bxd3 {[%emt 0:00:30]} Rd4 {[%emt 0:00:08]} 56. Re1+ {[%emt 0:04:06]} Kd6 {[%emt 0:00:57]} 57. Bc4 {[%emt 0:00:30]} Rd2 {[%emt 0:00:00]} 58. Re6+ {[%emt 0:03:38]} Kd7 {[%emt 0:04:10]} 59. Re2 {[%emt 0:00:05]} Rd6 {[%emt 0:05:12]} 60. h5 {[%emt 0:01:42]} Bd4 {[%emt 0:01:08]} 61. hxg6 {[%emt 0:02:41]} hxg6 {[%emt 0:00:11]} 62. f4 {[%emt 0:00:00]} Bf6 {[%emt 0:01:30]} 63. Re3 {[%emt 0:00:24]} Bd4 {[%emt 0:00:21]} 64. Re2 {[%emt 0:00:09]} Bf6 {[%emt 0:00:46]} 1/2-1/2

[Event "Turkish Super League 2019"]
[Site "Konya"]
[Date "2019.07.27"]
[Round "12"]
[White "Romanov, Evgeny"]
[Black "Esen, Baris"]
[Result "1-0"]
[ECO "B52"]
[WhiteElo "2582"]
[BlackElo "2478"]
[Annotator "ChessBase"]
[PlyCount "85"]
[EventDate "2019.07.17"]
[EventType "team-tourn"]
[EventCountry "TUR"]
[SourceTitle "playchess.com"]
[Source "ChessBase"]
[SourceQuality "1"]
[TimeControl "40/5400+30:1800+30"]

1. e4 c5 2. Nf3 d6 3. Bb5+ Bd7 4. Bxd7+ Nxd7 5. O-O Ngf6 6. Re1 e6 7. b3 Be7 8. Bb2 O-O 9. c4 e5 10. Nc3 Ne8 11. h3 g6 12. Nh2 Bg5 13. Nd5 Nc7 14. Nxc7 Qxc7 15. Nf1 Rae8 16. Ne3 Qd8 17. Qc2 Re6 18. Rf1 Bxe3 19. dxe3 Qh4 20. Rad1 f5 21. f4 exf4 22. Rxf4 Qe7 23. exf5 Rxe3 24. Qd2 Rxf5 25. Rxf5 gxf5 26. Qd5+ Re6 27. Rf1 Ne5 28. Rxf5 Kg7 29. Rf3 b6 30. Rg3+ Rg6 31. Re3 Re6 32. Kh2 Kf8 33. Re4 Kg7 34. a3 Kf8 35. b4 Kg7 36. bxc5 bxc5 {[%emt 1:46:07]} 37. Re3 {[%emt 1:41:14]} Qf6 {[%emt 0:00:30]} 38. Rg3+ {[%emt 0:00:30]} Kf7 {[%emt 0:00:30]} 39. Qa8 {[%emt 0:02:05]} Re8 {[%emt 0:01:43]} 40. Qxa7+ {[%emt 0:00:00]} Qe7 {[%emt 0:00:00]} 41. Qa4 {[%emt 0:04:41]} Qh4 {[%emt 0:14:36]} 42. Qc2 {[%emt 0:05:30]} Re6 {[%emt 0:06:49]} 43. Bxe5 {[%emt 0:02:30]} 1-0

[Event "Turkish Super League 2019"]
[Site "Konya"]
[Date "2019.07.27"]
[Round "12"]
[White "Rasulov, Vugar"]
[Black "Saric, Ivan"]
[Result "1-0"]
[ECO "B90"]
[WhiteElo "2534"]
[BlackElo "2681"]
[Annotator "ChessBase"]
[PlyCount "117"]
[EventDate "2019.07.17"]
[EventType "team-tourn"]
[EventCountry "TUR"]
[SourceTitle "playchess.com"]
[Source "ChessBase"]
[SourceQuality "1"]
[TimeControl "40/5400+30:1800+30"]

1. e4 c5 2. Nf3 d6 3. d4 cxd4 4. Nxd4 Nf6 5. Nc3 a6 6. Be3 e5 7. Nf3 Qc7 8. a4 Be7 9. Be2 O-O 10. a5 Nc6 11. Bb6 Qb8 12. Nd5 Nxe4 13. Ra4 Nc5 14. Bc7 Qa7 15. Nxe5 dxe5 16. Bb6 Nxa4 17. Bxa7 Rxa7 18. Qa1 Bd8 19. Qxa4 Bxa5+ 20. c3 b5 21. Qa3 Be6 22. Bf3 e4 23. Bxe4 Bxd5 24. Bxd5 Re8+ 25. Kf1 Rd7 26. Qc5 Ne5 27. g3 Nd3 28. Qc6 Red8 29. Qxa6 Rxd5 30. Qxa5 Nxb2 31. Kg2 Nd3 32. Qc7 g6 33. Ra1 Re8 34. Qc6 Rde5 35. Ra8 Rxa8 36. Qxa8+ Kg7 37. Qd8 Ne1+ 38. Kf1 Nf3 39. h3 h5 40. Qd3 Rf5 41. Qe3 Kg8 42. Kg2 Ne5 43. f4 Nc4 44. Qe4 Rd5 45. g4 hxg4 46. hxg4 Kg7 47. Kg3 Rd1 48. f5 Rd6 49. Kf4 gxf5 50. gxf5 Rd2 51. Qf3 Nd6 52. Qc6 Rd1 53. Qg2+ Kf8 54. Kg5 Rd3 55. Qc6 Kg7 56. f6+ Kf8 57. Qc7 {[%emt 1:18:30]} Kg8 {[%emt 2:15:48]} 58. Qd8+ {[%emt 0:00:30]} Kh7 {[%emt 0:00:03]} 59. Qf8 {[%emt 0:00:00]} 1-0

[Event "Turkish Super League 2019"]
[Site "Konya"]
[Date "2019.07.27"]
[Round "12"]
[White "Gholami, Aryan"]
[Black "Lobanov, Sergei"]
[Result "1-0"]
[ECO "A11"]
[WhiteElo "2532"]
[BlackElo "2505"]
[Annotator "ChessBase"]
[PlyCount "59"]
[EventDate "2019.07.17"]
[EventType "team-tourn"]
[EventCountry "TUR"]
[SourceTitle "playchess.com"]
[Source "ChessBase"]
[SourceQuality "1"]
[TimeControl "40/5400+30:1800+30"]

1. Nf3 d5 2. g3 Nf6 3. Bg2 c6 4. c4 g6 5. b3 Bg7 6. Bb2 O-O 7. O-O a5 8. Nc3 Ne4 9. Na4 Bxb2 10. Nxb2 Na6 11. a3 Qd6 12. d3 Nf6 13. Qd2 b6 14. Na4 Rb8 15. d4 Ne4 16. Qe3 f6 17. Ne1 Qe6 18. Nd3 g5 19. Rfc1 Bd7 20. b4 axb4 21. axb4 dxc4 22. Bxe4 cxd3 23. Rxc6 Qf7 {[%emt 1:23:31]} 24. Rxb6 {[%emt 1:09:00]} Nxb4 {[%emt 0:00:30]} 25. Rb1 {[%emt 0:00:30]} Bxa4 {[%emt 0:14:32]} 26. R6xb4 {[%emt 0:00:00]} Rxb4 {[%emt 0:01:13]} 27. Rxb4 {[%emt 0:00:00]} Bc2 {[%emt 0:00:42]} 28. exd3 {[%emt 0:00:30]} Bb3 {[%emt 0:00:27]} 29. Rb7 {[%emt 0:00:30]} Rc8 {[%emt 0:03:02]} 30. Bf5 {[%emt 0:01:30]} 1-0

[Event "Turkish Super League 2019"]
[Site "Konya"]
[Date "2019.07.27"]
[Round "12"]
[White "Iljiushenok, Ilia"]
[Black "Abasov, Nijat"]
[Result "1-0"]
[ECO "B30"]
[WhiteElo "2520"]
[BlackElo "2641"]
[Annotator "ChessBase"]
[PlyCount "103"]
[EventDate "2019.07.17"]
[EventType "team-tourn"]
[EventCountry "TUR"]
[SourceTitle "playchess.com"]
[Source "ChessBase"]
[SourceQuality "1"]
[TimeControl "40/5400+30:1800+30"]

1. e4 c5 2. Nc3 Nc6 3. Nf3 e5 4. Bc4 Be7 5. d3 Nf6 6. O-O O-O 7. a4 d6 8. h3 Nb4 9. Ne2 Be6 10. Bxe6 fxe6 11. Ng3 Nc6 12. c3 d5 13. Bd2 Qc7 14. Qe2 Nd7 15. Rab1 d4 16. cxd4 exd4 17. Ng5 Bxg5 18. Bxg5 Nde5 19. Bd2 Ng6 20. Nh5 e5 21. b4 cxb4 22. Bxb4 Rf7 23. Rfc1 Qd7 24. Ba3 Nd8 25. Rc4 Ne6 26. Qg4 Re8 27. Rb5 Nef4 28. Nxf4 Qxg4 29. hxg4 Nxf4 30. Rxe5 Rd8 31. g3 Nh3+ 32. Kg2 Nxf2 33. Rxd4 Rc8 34. Rc5 Rb8 35. Rcd5 h6 36. Rd8+ Rxd8 37. Rxd8+ Kh7 38. e5 Nxg4 39. e6 {[%emt 1:46:45]} Ne3+ {[%emt 1:41:17]} 40. Kh3 {[%emt 0:00:30]} Rf1 {[%emt 0:00:30]} 41. g4 {[%emt 0:30:30]} Rf3+ {[%emt 0:01:43]} 42. Kh2 {[%emt 0:00:00]} Nxg4+ {[%emt 0:00:30]} 43. Kg2 {[%emt 0:00:00]} Re3 {[%emt 0:00:30]} 44. e7 {[%emt 0:00:00]} Nf6 {[%emt 0:00:00]} 45. Bc5 {[%emt 0:00:00]} Re6 {[%emt 0:08:00]} 46. d4 {[%emt 0:00:00]} b6 {[%emt 0:00:00]} 47. Ba3 {[%emt 0:00:00]} Re3 {[%emt 0:01:00]} 48. Bd6 {[%emt 0:00:00]} Kg6 {[%emt 0:00:30]} 49. Rf8 {[%emt 0:00:00]} Re6 {[%emt 0:01:30]} 50. Ba3 {[%emt 0:00:00]} Re3 {[%emt 0:00:30]} 51. d5 {[%emt 0:00:00]} Rxa3 {[%emt 0:02:30]} 52. Rxf6+ {[%emt 0:00:00]} 1-0

[Event "Turkish Super League 2019"]
[Site "Konya"]
[Date "2019.07.27"]
[Round "12"]
[White "Asadli, Vugar"]
[Black "Visakh N R"]
[Result "1/2-1/2"]
[ECO "B90"]
[WhiteElo "2502"]
[BlackElo "2526"]
[Annotator "ChessBase"]
[PlyCount "63"]
[EventDate "2019.07.17"]
[EventType "team-tourn"]
[EventCountry "TUR"]
[SourceTitle "playchess.com"]
[Source "ChessBase"]
[SourceQuality "1"]
[TimeControl "40/5400+30:1800+30"]

1. e4 c5 2. Nc3 a6 3. Nf3 d6 4. d4 cxd4 5. Nxd4 Nf6 6. h3 e5 7. Nde2 h5 8. Bg5 Be6 9. Bxf6 Qxf6 10. Nd5 Qd8 11. Qd3 Nd7 12. O-O-O g6 13. Kb1 Nc5 14. Qf3 Bg7 15. Nec3 Rc8 16. Rg1 b5 17. a3 Kf8 18. g4 Qg5 19. Be2 hxg4 20. hxg4 Bh6 21. Rg3 Bg7 22. Ne3 Rd8 23. Nf5 Qf4 24. Qg2 {[%emt 1:04:00]} Bf6 {[%emt 1:28:50]} 25. Ne3 {[%emt 0:07:30]} Qg5 {[%emt 0:01:37]} 26. Ncd5 {[%emt 0:01:30]} Bxd5 {[%emt 0:01:32]} 27. Nxd5 {[%emt 0:02:30]} Ne6 {[%emt 0:00:08]} 28. Rh3 {[%emt 0:02:30]} Rxh3 {[%emt 0:01:27]} 29. Qxh3 {[%emt 0:00:30]} Bg7 {[%emt 0:00:19]} 30. Qc3 {[%emt 0:01:30]} Nd4 {[%emt 0:01:17]} 31. Bf3 {[%emt 0:01:30]} Qh4 {[%emt 0:00:22]} 32. Rh1 {[%emt 0:02:30]} 1/2-1/2

[Event "Turkish Super League 2019"]
[Site "Konya"]
[Date "2019.07.27"]
[Round "12"]
[White "Atalik, Ekaterina"]
[Black "Savina, Anastasia"]
[Result "1-0"]
[ECO "A48"]
[WhiteElo "2459"]
[BlackElo "2344"]
[Annotator "ChessBase"]
[PlyCount "77"]
[EventDate "2019.07.17"]
[EventType "team-tourn"]
[EventCountry "TUR"]
[SourceTitle "playchess.com"]
[Source "ChessBase"]
[SourceQuality "1"]
[TimeControl "40/5400+30:1800+30"]

1. Nf3 g6 2. d4 Bg7 3. g3 Nf6 4. b3 O-O 5. Bb2 b5 6. Bg2 Bb7 7. O-O d6 8. Na3 c6 9. Ne1 b4 10. Nc4 Nbd7 11. Nd3 a5 12. a3 d5 13. Nce5 Nxe5 14. dxe5 Nd7 15. e4 dxe4 16. Bxe4 Qc7 17. axb4 axb4 18. Rxa8 Bxa8 19. e6 Bxb2 20. exf7+ Rxf7 21. Nxb2 Nf6 22. Bg2 Bb7 23. Nd3 Ba6 24. Re1 Bxd3 25. Qxd3 Qb6 26. Qe3 {[%emt 0:51:00]} Qxe3 {[%emt 1:41:29]} 27. Rxe3 {[%emt 0:00:30]} c5 {[%emt 0:00:30]} 28. Bh3 {[%emt 0:00:30]} Rf8 {[%emt 0:00:30]} 29. Rxe7 {[%emt 0:00:30]} Ra8 {[%emt 0:00:59]} 30. Rc7 {[%emt 0:04:30]} Ne4 {[%emt 0:00:58]} 31. Be6+ {[%emt 0:01:30]} Kf8 {[%emt 0:00:28]} 32. Bd5 {[%emt 0:00:30]} Ra1+ {[%emt 0:00:48]} 33. Kg2 {[%emt 0:00:30]} Nc3 {[%emt 0:00:00]} 34. Bc4 {[%emt 0:00:30]} Rd1 {[%emt 0:00:43]} 35. Rf7+ {[%emt 0:03:30]} Ke8 {[%emt 0:00:03]} 36. Rxh7 {[%emt 0:00:00]} g5 {[%emt 0:00:53]} 37. Rg7 {[%emt 0:02:00]} Rd2 {[%emt 0:00:10]} 38. Rxg5 {[%emt 0:01:30]} Rxc2 {[%emt 0:00:38]} 39. Rxc5 {[%emt 0:00:30]} 1-0

[Event "Turkish Super League 2019"]
[Site "Konya"]
[Date "2019.07.27"]
[Round "12"]
[White "Soysal, Serkan"]
[Black "Yurtseven, Melih"]
[Result "0-1"]
[ECO "A46"]
[WhiteElo "2431"]
[BlackElo "2381"]
[Annotator "NA"]
[PlyCount "108"]
[EventDate "2019.07.17"]
[EventType "team-tourn"]
[EventCountry "TUR"]
[SourceTitle "playchess.com"]
[Source "ChessBase"]
[SourceQuality "1"]
[TimeControl "40/5400+30:1800+30"]

1. d4 Nf6 2. Nf3 c5 3. c3 b6 4. Bg5 Bb7 5. Nbd2 d5 6. e3 Nbd7 7. Bd3 g6 8. Bxf6 exf6 9. O-O f5 10. dxc5 bxc5 11. Bb5 a6 12. Bxd7+ Qxd7 13. Ne5 Qb5 14. c4 dxc4 15. Ndxc4 Rd8 16. Qc2 Be4 17. Qb3 f6 18. Nf3 Rd3 19. Qxb5+ axb5 20. Na3 Bc6 21. Rac1 Kd7 22. Rfd1 Rxd1+ 23. Rxd1+ Kc7 24. Nb1 Bd6 25. a3 Ra8 26. Nbd2 f4 27. exf4 Bxf4 28. Nb3 Bxf3 29. gxf3 Kc6 30. Nc1 c4 31. Na2 Bd6 32. Rd4 {[%emt 1:42:26]} g5 {[%emt 1:43:51]} 33. h3 {[%emt 0:00:30]} Kc5 {[%emt 0:00:30]} 34. Rd2 {[%emt 0:00:30]} Bf4 {[%emt 0:00:30]} 35. Rd1 {[%emt 0:00:30]} Be5 {[%emt 0:00:30]} 36. Rd2 {[%emt 0:00:30]} Ra6 {[%emt 0:00:30]} 37. Kf1 {[%emt 0:00:41]} Bf4 {[%emt 0:01:52]} 38. Rd7 {[%emt 0:01:09]} Be5 {[%emt 0:01:12]} 39. Rd2 {[%emt 0:00:05]} Re6 {[%emt 0:00:00]} 40. Nc3 {[%emt 0:00:00]} Bxc3 {[%emt 0:00:00]} 41. bxc3 {[%emt 0:02:09]} Ra6 {[%emt 0:00:35]} 42. Ra2 {[%emt 0:00:00]} f5 {[%emt 0:00:30]} 43. Ra1 {[%emt 0:08:00]} f4 {[%emt 0:05:30]} 44. Ke2 {[%emt 0:15:30]} Re6+ {[%emt 0:06:30]} 45. Kd2 {[%emt 0:00:02]} Rd6+ {[%emt 0:00:30]} 46. Kc2 {[%emt 0:01:11]} Rd3 {[%emt 0:00:30]} 47. Rg1 {[%emt 0:00:25]} h6 {[%emt 0:00:30]} 48. h4 {[%emt 0:00:18]} gxh4 {[%emt 0:00:30]} 49. Rh1 {[%emt 0:01:43]} Rxf3 {[%emt 0:00:30]} 50. Rxh4 {[%emt 0:00:07]} Rxf2+ {[%emt 0:01:01]} 51. Kb1 {[%emt 0:00:05]} f3 {[%emt 0:00:05]} 52. Rh5+ {[%emt 0:02:51]} Kd6 {[%emt 0:00:24]} 53. Kc1 {[%emt 0:02:57]} Ra2 {[%emt 0:00:30]} 54. Kd1 {[%emt 0:00:30]} Ra1+ {[%emt 0:00:30]} 0-1

[Event "Turkish Super League 2019"]
[Site "Konya"]
[Date "2019.07.27"]
[Round "12"]
[White "Gulbas, Cemil"]
[Black "Arat, Ufuk Sezen"]
[Result "0-1"]
[ECO "C42"]
[WhiteElo "2380"]
[BlackElo "2376"]
[Annotator "NA"]
[PlyCount "98"]
[EventDate "2019.07.17"]
[EventType "team-tourn"]
[EventCountry "TUR"]
[SourceTitle "playchess.com"]
[Source "ChessBase"]
[SourceQuality "1"]
[TimeControl "40/5400+30:1800+30"]

1. e4 e5 2. Nf3 Nf6 3. Nxe5 d6 4. Nf3 Nxe4 5. Nc3 Nxc3 6. dxc3 Be7 7. Be3 O-O 8. Qd2 Nd7 9. O-O-O c6 10. h3 d5 11. Nd4 Nc5 12. f3 Ne6 13. Nf5 Bg5 14. f4 Bf6 15. g4 d4 16. cxd4 Qd5 17. Kb1 Qxh1 18. Bg2 Qxd1+ 19. Qxd1 Rd8 20. Qg1 Nc7 21. Ng3 Nd5 22. Bd2 Nb6 23. c3 Bh4 24. Nf1 Be6 25. b3 Re8 26. Ne3 Rad8 27. Kc2 g6 28. Bf3 Bd5 29. Nxd5 Nxd5 30. c4 Nc7 31. Ba5 Rd7 32. f5 Bf6 33. Bxc7 Rxc7 34. g5 Be7 {[%emt 1:43:50]} 35. h4 {[%emt 1:43:39]} Bd6 {[%emt 0:00:30]} 36. f6 {[%emt 0:02:37]} Rd7 {[%emt 0:02:05]} 37. Qg4 {[%emt 0:00:55]} Rdd8 {[%emt 0:00:40]} 38. c5 {[%emt 0:00:57]} Bf8 {[%emt 0:01:01]} 39. b4 {[%emt 0:00:22]} Re1 {[%emt 0:00:41]} 40. b5 {[%emt 0:00:00]} cxb5 {[%emt 0:00:00]} 41. Bxb7 {[%emt 0:02:00]} b4 {[%emt 0:10:43]} 42. Qf4 {[%emt 0:10:30]} Rde8 {[%emt 0:10:53]} 43. Bd5 {[%emt 0:02:25]} R8e3 {[%emt 0:01:23]} 44. Qg4 {[%emt 0:06:50]} h5 {[%emt 0:01:57]} 45. gxh6 {[%emt 0:00:48]} Kh8 {[%emt 0:02:10]} 46. Bc4 {[%emt 0:05:50]} Bxh6 {[%emt 0:00:30]} 47. Bd3 {[%emt 0:02:47]} Rc1+ {[%emt 0:00:35]} 48. Kxc1 {[%emt 0:00:48]} Rg3+ {[%emt 0:00:05]} 49. Qg5 {[%emt 0:00:00]} Bxg5+ {[%emt 0:01:11]} 0-1

[Event "Turkish Super League 2019"]
[Site "Konya"]
[Date "2019.07.27"]
[Round "12"]
[White "Tarlabasi, Emirhan"]
[Black "Ozen, Deniz"]
[Result "1/2-1/2"]
[ECO "D19"]
[WhiteElo "2352"]
[BlackElo "2430"]
[Annotator "NA"]
[PlyCount "63"]
[EventDate "2019.07.17"]
[EventType "team-tourn"]
[EventCountry "TUR"]
[SourceTitle "playchess.com"]
[Source "ChessBase"]
[SourceQuality "1"]
[TimeControl "40/5400+30:1800+30"]

1. d4 d5 2. c4 c6 3. Nf3 Nf6 4. Nc3 dxc4 5. a4 Bf5 6. e3 e6 7. Bxc4 Bb4 8. O-O Nbd7 9. Qe2 O-O 10. e4 Bg4 11. Rd1 Qc7 12. h3 Bxf3 13. Qxf3 e5 14. d5 cxd5 15. Bxd5 Bxc3 16. Qxc3 Qxc3 17. bxc3 Nc5 18. Ba3 Rfc8 19. Bxc5 Rxc5 20. Bxb7 Rb8 21. a5 Kf8 22. a6 Rxc3 23. Rac1 Rxc1 24. Rxc1 Ne8 25. g3 Ke7 26. Rc5 f6 {[%emt 1:15:00]} 27. f4 {[%emt 1:18:30]} Kd6 {[%emt 0:00:30]} 28. Rd5+ {[%emt 0:10:26]} Ke6 {[%emt 0:00:00]} 29. Rb5 {[%emt 0:00:28]} Kd6 {[%emt 0:01:00]} 30. Rd5+ {[%emt 0:04:14]} Ke6 {[%emt 0:01:30]} 31. Rb5 {[%emt 0:00:45]} Kd6 {[%emt 0:00:30]} 32. Rd5+ {[%emt 0:01:33]} 1/2-1/2

[Event "Turkish Super League 2019"]
[Site "Konya"]
[Date "2019.07.27"]
[Round "12"]
[White "Ozturk, Kubra"]
[Black "Tsolakidou, Stavroula"]
[Result "0-1"]
[ECO "E20"]
[WhiteElo "2317"]
[BlackElo "2423"]
[Annotator "NA"]
[PlyCount "100"]
[EventDate "2019.07.17"]
[EventType "team-tourn"]
[EventCountry "TUR"]
[SourceTitle "playchess.com"]
[Source "ChessBase"]
[SourceQuality "1"]
[TimeControl "40/5400+30:1800+30"]

1. d4 Nf6 2. c4 e6 3. Nc3 Bb4 4. g3 O-O 5. Bg2 d6 6. Nf3 Bxc3+ 7. bxc3 Nbd7 8. O-O Re8 9. Bf4 Qe7 10. h3 h6 11. Qc2 e5 12. Be3 e4 13. Nd2 b6 14. Rae1 Bb7 15. f3 Rab8 16. g4 b5 17. f4 Nb6 18. g5 hxg5 19. fxg5 Nh5 20. g6 fxg6 21. cxb5 Nd5 22. Qb3 Ng3 23. Rf4 Kh8 24. Rg4 Nxe3 25. Rxg3 Qh4 26. Kh2 Nf5 27. Nf1 Nxg3 28. Nxg3 Rf8 29. Qe6 Rf2 30. Rf1 Rbf8 31. d5 Rxf1 32. Nxf1 Rf2 33. Ng3 Qg5 34. c4 e3 35. a4 Kh7 36. a5 Rf8 {[%emt 1:44:04]} 37. Qe4 {[%emt 1:43:18]} Bc8 {[%emt 0:00:30]} 38. h4 {[%emt 0:00:30]} Qg4 {[%emt 0:00:30]} 39. h5 {[%emt 0:01:05]} Rf6 {[%emt 0:03:36]} 40. hxg6+ {[%emt 0:00:00]} Rxg6 {[%emt 0:00:00]} 41. Qxg4 {[%emt 0:07:37]} Rxg4 {[%emt 0:05:50]} 42. Be4+ {[%emt 0:00:30]} g6 {[%emt 0:00:30]} 43. Bd3 {[%emt 0:01:30]} Rf4 {[%emt 0:03:30]} 44. Kg2 {[%emt 0:06:30]} Kg7 {[%emt 0:00:30]} 45. a6 {[%emt 0:02:42]} Kf6 {[%emt 0:03:30]} 46. Ne4+ {[%emt 0:05:46]} Ke5 {[%emt 0:00:30]} 47. Nc3 {[%emt 0:00:08]} Bf5 {[%emt 0:01:09]} 48. Bxf5 {[%emt 0:10:57]} gxf5 {[%emt 0:00:16]} 49. c5 {[%emt 0:01:53]} dxc5 {[%emt 0:01:20]} 50. d6 {[%emt 0:00:43]} Kxd6 {[%emt 0:00:49]} 0-1

[Event "Turkish Super League 2019"]
[Site "Konya"]
[Date "2019.07.27"]
[Round "12"]
[White "Tasdogen, Dincer"]
[Black "Annaberdiyev, Babageldi"]
[Result "1-0"]
[ECO "B15"]
[WhiteElo "2310"]
[BlackElo "2244"]
[Annotator "NA"]
[PlyCount "105"]
[EventDate "2019.07.17"]
[EventType "team-tourn"]
[EventCountry "TUR"]
[SourceTitle "playchess.com"]
[Source "ChessBase"]
[SourceQuality "1"]
[TimeControl "40/5400+30:1800+30"]

1. e4 c6 2. d4 d5 3. Nc3 dxe4 4. Nxe4 Nf6 5. Nxf6+ exf6 6. c3 Bd6 7. Bd3 O-O 8. Ne2 Re8 9. O-O Nd7 10. Bf4 Nf8 11. Qd2 Ng6 12. Bxd6 Qxd6 13. Ng3 Qf4 14. Qxf4 Nxf4 15. Rfe1 Be6 16. Bf1 f5 17. c4 Red8 18. Rad1 Rd7 19. Rd2 Rad8 20. Red1 g5 21. b3 Kg7 22. Ne2 Nh5 23. d5 cxd5 24. Nd4 Nf6 25. c5 Ng4 26. Re1 Kf6 27. f3 Ne5 28. Rde2 Nc6 29. Nxe6 fxe6 30. Rxe6+ Kf7 31. h4 gxh4 32. Rh6 Kg7 33. Rxh4 d4 34. Bd3 Re7 35. Rxe7+ Nxe7 36. Kf2 Ng6 37. Rh1 Rd5 38. b4 {[%emt 1:47:48]} Ne7 {[%emt 1:40:01]} 39. g4 {[%emt 0:00:30]} h6 {[%emt 0:00:30]} 40. gxf5 {[%emt 0:00:00]} a5 {[%emt 0:00:00]} 41. Re1 {[%emt 0:15:16]} Nc6 {[%emt 0:11:59]} 42. Be4 {[%emt 0:00:50]} Rd7 {[%emt 0:00:30]} 43. b5 {[%emt 0:01:25]} Nb4 {[%emt 0:06:30]} 44. a3 {[%emt 0:03:57]} Na2 {[%emt 0:00:30]} 45. c6 {[%emt 0:03:16]} bxc6 {[%emt 0:00:30]} 46. bxc6 {[%emt 0:00:17]} Rc7 {[%emt 0:00:30]} 47. Rg1+ {[%emt 0:04:57]} Kf8 {[%emt 0:02:30]} 48. Bd5 {[%emt 0:01:47]} Nc3 {[%emt 0:02:37]} 49. Rg8+ {[%emt 0:00:30]} Ke7 {[%emt 0:00:30]} 50. Rg7+ {[%emt 0:00:00]} Kd6 {[%emt 0:00:40]} 51. Rxc7 {[%emt 0:00:00]} Kxc7 {[%emt 0:00:30]} 52. f6 {[%emt 0:00:00]} d3 {[%emt 0:04:00]} 53. Ke1 {[%emt 0:00:00]} 1-0

[Event "Turkish Super League 2019"]
[Site "Konya"]
[Date "2019.07.27"]
[Round "12"]
[White "Caglar, Sila"]
[Black "Mammadzada, Gunay"]
[Result "1/2-1/2"]
[ECO "B94"]
[WhiteElo "2306"]
[BlackElo "2427"]
[Annotator "NA RC"]
[PlyCount "43"]
[EventDate "2019.07.17"]
[EventType "team-tourn"]
[EventCountry "TUR"]
[SourceTitle "playchess.com"]
[Source "ChessBase"]
[SourceQuality "1"]
[TimeControl "40/5400+30:1800+30"]

1. e4 {[%emt 0:00:30]} c5 {[%emt 0:00:30]} 2. Nf3 {[%emt 0:00:30]} d6 {[%emt 0:00:00]} 3. d4 {[%emt 0:00:00]} cxd4 {[%emt 0:00:00]} 4. Nxd4 {[%emt 0:00:00]} Nf6 {[%emt 0:00:00]} 5. Nc3 {[%emt 0:00:00]} a6 {[%emt 0:00:00]} 6. Bg5 {[%emt 0:01:00]} Nbd7 {[%emt 0:00:30]} 7. Qe2 {[%emt 0:00:00]} h6 {[%emt 0:00:00]} 8. Bh4 {[%emt 0:00:00]} g6 {[%emt 0:00:00]} 9. f4 {[%emt 0:00:00]} e5 {[%emt 0:00:30]} 10. fxe5 {[%emt 0:00:00]} dxe5 {[%emt 0:00:30]} 11. O-O-O {[%emt 0:00:30]} Qc7 {[%emt 0:00:30]} 12. Nb3 {[%emt 0:00:30]} b5 {[%emt 0:00:00]} 13. Rxd7 {[%emt 0:00:00]} Nxd7 {[%emt 0:00:00]} 14. Nd5 {[%emt 0:00:00]} Qb8 {[%emt 0:00:30]} 15. Na5 {[%emt 0:00:30]} Bg7 {[%emt 0:13:30]} 16. Qf3 {[%emt 0:01:30]} O-O {[%emt 0:02:30]} 17. Be7 {[%emt 0:01:30]} Re8 {[%emt 0:14:30]} 18. Nc6 {[%emt 0:00:30]} Qb7 {[%emt 0:00:30]} 19. Na5 {[%emt 0:00:30]} Qb8 {[%emt 0:06:30]} 20. Nc6 {[%emt 0:00:30]} Qb7 {[%emt 0:00:30]} 21. Na5 {[%emt 0:00:00]} Qb8 {[%emt 0:00:00]} 22. Nc6 {[%emt 0:00:00]} 1/2-1/2